bitfinex/quotes_SOLUSD_20251106
["timestamp","ask_amount","ask_price","bid_price","bid_amount"]
[1762436138212,10.54424285,160.93,160.89,0.67]
[1762436138406,10.54424285,160.93,160.89,6.88530799]
[1762436138831,4.33034057,160.92,160.89,0.67]
[1762436139606,4.33034057,160.92,160.89,6.88540773]
[1762436139823,6.21390228,160.93,160.89,6.88540773]
[1762436139824,4.33034057,160.93,160.89,6.88540773]
[1762436140526,10.5442532,160.93,160.89,6.88540773]
[1762436141522,4.33034057,160.93,160.9,0.67]
[1762436141911,6.21274008,160.96,160.9,0.67]
[1762436142134,6.93040864,161.02,160.95,14.11916826]
[1762436142444,4.33034057,161.01,160.95,14.11916826]
[1762436142608,4.33034057,161.01,160.96,0.67]
[1762436143020,6.93040864,161.02,160.97,9.78882769]
[1762436143021,10.54074921,161.02,160.97,9.78882769]
[1762436143222,4.33034057,161.01,160.97,10.45882769]
[1762436143412,11.26074921,161.02,160.97,10.45882769]
[1762436144143,11.26074921,161.02,160.97,16.67111197]
[1762436145140,11.26074921,161.02,160.97,21.00145254]
[1762436145345,10.54074921,161.02,160.98,0.67]
[1762436145551,6.21040864,161.02,160.98,5.00034057]
[1762436146051,6.21040864,161.02,160.97,9.78882769]
[1762436146052,11.26074921,161.02,160.97,9.78882769]
[1762436146249,4.33034057,161.01,160.97,10.45882769]
[1762436147445,11.26074921,161.02,160.97,10.45882769]
[1762436147630,11.26074921,161.02,160.94,31.53606268]
[1762436147831,11.26074921,161.02,160.98,0.67]
[1762436148453,10.54074921,161.02,160.98,0.67]
[1762436149353,11.26074921,161.02,160.98,0.67]
[1762436151555,4.33034057,161.01,160.98,0.67]
[1762436152362,6.08018431,161.01,160.98,0.67]
[1762436153257,13.01059295,161.02,160.98,0.67]
[1762436153758,105.11784758,164.52,160.98,0.67]
[1762436153759,6.18018431,161.1,161.01,6.08018431]
[1762436153960,0.1,161.1,161.05,15.869012]
[1762436154259,12.38754207,161.1,161.06,0.68]
[1762436154457,6.84018431,161.1,161.06,0.68]
[1762436154778,6.84018431,161.1,161.05,9.78882769]
[1762436154779,6.08018431,161.09,161.05,9.78882769]
[1762436155062,6.08018431,161.09,161.05,10.46882769]
[1762436155237,12.28817568,161.09,161.05,10.46882769]
[1762436155438,6.20799137,161.09,161.05,10.46882769]
[1762436155653,12.38753951,161.1,161.06,0.68]
[1762436155865,0.1,161.1,161.09,9.78882769]
[1762436156249,0.1,161.1,161.09,10.46882769]
[1762436156667,0.1,161.1,161.09,16.549012]
[1762436156938,0.1,161.1,161.09,10.46882769]
[1762436157141,0.1,161.1,161.09,0.68]
[1762436158156,0.1,161.1,161.09,6.76018431]
[1762436158335,0.1,161.1,161.08,15.869012]
[1762436158535,0.1,161.1,161.08,16.549012]
[1762436158738,0.1,161.1,161.09,0.68]
[1762436159369,0.1,161.1,161.08,9.78882769]
[1762436159549,0.1,161.1,161.09,0.68]
[1762436159755,0.1,161.1,161.09,6.76018431]
[1762436160148,0.1,161.1,161.08,9.78882769]
[1762436160342,0.1,161.1,161.08,10.46882769]
[1762436160657,0.1,161.1,161.08,15.99689026]
[1762436160860,0.1,161.1,161.08,16.67689026]
[1762436161074,0.1,161.1,161.09,0.68]
[1762436161241,0.1,161.1,161.09,12.96789428]
[1762436161562,0.1,161.17,161.13,30.38082769]
[1762436161863,6.08018431,161.27,161.2,30.38082769]
[1762436162088,6.19962802,161.3,161.18,0.68]
[1762436162089,6.08018431,161.21,161.18,0.68]
[1762436162374,6.08018431,161.19,161.13,0.68]
[1762436162578,6.08018431,161.16,161.13,0.68]
[1762436163182,6.08018431,161.15,161.1,17.30882769]
[1762436163344,6.08018431,161.16,161.13,0.68]
[1762436163553,6.08018431,161.15,161.1,9.78882769]
[1762436163775,6.08018431,161.15,161.11,0.68]
[1762436163973,6.08018431,161.13,161.11,0.68]
[1762436165273,6.08018431,161.13,161.09,0.68]
[1762436165274,12.28645929,161.13,161.09,0.68]
[1762436165786,6.08018431,161.1,161.03,6.08018431]
[1762436165947,6.08018431,161.05,161.0,0.68]
[1762436166278,21.7216973,161.13,161.0,0.68]
[1762436166279,6.08018431,161.03,161.0,0.68]
[1762436166679,6.08018431,161.02,160.98,0.68]
[1762436166972,6.08018431,161.0,160.96,0.68]
[1762436167679,6.21103414,161.01,160.96,0.68]
[1762436167680,6.08018431,161.01,160.96,0.68]
[1762436167845,12.29113939,161.01,160.96,0.68]
[1762436168040,6.08018431,161.0,160.96,6.89272167]
[1762436168246,6.08018431,161.0,160.96,0.68]
[1762436168445,6.08018431,161.0,160.95,9.78882769]
[1762436168446,6.08018431,161.0,160.97,0.68]
[1762436170388,6.08018431,161.0,160.94,13.58018431]
[1762436170389,6.08018431,160.99,160.94,8.18]
[1762436170571,6.08018431,160.99,160.95,0.68]
[1762436171081,6.08018431,161.0,160.95,0.68]
[1762436171265,6.08018431,161.0,160.95,6.89292114]
[1762436171466,31.04186605,161.08,160.95,6.89292114]
[1762436171467,50.0,161.13,160.96,9.78882769]
[1762436171780,18.66309994,161.14,161.01,6.08018431]
[1762436171781,6.08018431,161.07,161.01,6.08018431]
[1762436172300,0.66,161.07,161.02,6.08018431]
[1762436172510,6.74018431,161.07,161.02,0.68]
[1762436173073,6.08018431,161.06,161.0,6.08018431]
[1762436173399,6.08018431,161.05,161.0,6.89117898]
[1762436173586,12.94919725,161.06,161.0,12.97136329]
[1762436173777,6.08018431,161.07,161.01,0.68]
[1762436173977,20.592,161.11,161.02,6.08018431]
[1762436173978,6.08018431,161.08,161.02,6.08018431]
[1762436174173,6.08018431,161.06,161.01,6.76018431]
[1762436174486,6.08018431,161.04,160.98,6.76018431]
[1762436174688,0.66,161.09,161.01,6.08018431]
[1762436174983,0.66,161.09,160.99,10.46882769]
[1762436174984,6.08018431,161.04,160.99,0.68]
[1762436175186,6.08018431,161.06,161.0,10.46882769]
[1762436175397,6.08018431,161.06,161.01,6.21079436]
[1762436175596,6.08018431,161.06,161.01,6.89079436]
[1762436175904,6.08018431,161.06,161.01,0.68]
[1762436175905,6.08018431,161.05,161.01,0.68]
[1762436176081,6.08018431,161.04,160.99,9.78882769]
[1762436176390,6.74018431,161.05,160.99,15.869012]
[1762436176566,6.74018431,161.05,161.0,0.68]
[1762436176767,12.94866509,161.07,161.01,6.08018431]
[1762436176967,6.08018431,161.06,161.01,6.08018431]
[1762436177200,6.08018431,161.06,161.01,6.76018431]
[1762436177392,6.08018431,161.06,161.02,6.89037817]
[1762436177691,20.66077814,161.16,161.02,6.89037817]
[1762436177692,6.20539869,161.15,161.05,15.869012]
[1762436177880,0.66,161.16,161.1,6.08018431]
[1762436178073,12.94524477,161.16,161.1,6.76018431]
[1762436178284,12.94524477,161.16,161.1,0.68]
[1762436178285,6.08018431,161.15,161.1,0.68]
[1762436178683,6.74018431,161.15,161.1,0.68]
[1762436178896,0.66,161.15,161.1,6.76018431]
[1762436179082,0.66,161.15,161.1,12.96747386]
[1762436179688,6.74018431,161.15,161.1,6.76018431]
[1762436180008,6.08018431,161.16,161.11,6.08018431]
[1762436180290,6.74018431,161.16,161.11,6.76018431]
[1762436180495,0.66,161.16,161.11,6.76018431]
[1762436180985,6.74018431,161.16,161.11,6.76018431]
[1762436181189,6.20578379,161.14,161.09,6.08018431]
[1762436181503,12.2859681,161.14,161.08,12.96820212]
[1762436182396,6.20578379,161.14,161.1,6.20732464]
[1762436182695,12.94561901,161.15,161.1,6.20732464]
[1762436182878,0.68,161.14,161.1,6.20732464]
[1762436183396,6.76018431,161.14,161.08,6.92789644]
[1762436183609,6.08018431,161.1,161.04,0.72]
[1762436183805,27.79911575,161.15,161.02,9.78882769]
[1762436183806,6.08018431,161.06,161.02,9.78882769]
[1762436184017,6.08018431,161.06,161.01,9.78882769]
[1762436184018,6.76018431,161.06,161.01,9.78882769]
[1762436184310,6.08018431,161.06,161.02,0.72]
[1762436184682,6.08018431,161.06,161.03,6.21002297]
[1762436185706,6.08018431,161.09,161.04,0.72]
[1762436185904,12.28674388,161.12,161.05,9.78882769]
[1762436186094,6.08018431,161.1,161.05,9.78882769]
[1762436186277,6.08018431,161.11,161.06,0.72]
[1762436186482,6.08018431,161.12,161.07,9.78882769]
[1762436186883,6.08018431,161.11,161.07,0.72]
[1762436187297,6.88664225,161.12,161.07,0.72]
[1762436187298,6.08018431,161.1,161.07,0.72]
[1762436187610,6.08018431,161.08,161.04,15.99811814]
[1762436187815,6.08018431,161.06,161.03,0.72]
[1762436188009,6.08018431,161.07,161.04,0.72]
[1762436188314,6.08018431,161.08,161.04,0.72]
[1762436188484,0.68,161.15,161.05,15.869012]
[1762436188685,6.08018431,161.14,161.07,9.78882769]
[1762436188887,6.08018431,161.14,161.07,15.869012]
[1762436189091,6.08018431,161.14,161.09,9.78882769]
[1762436189301,6.08018431,161.13,161.09,9.78882769]
[1762436189583,6.08018431,161.12,161.09,6.20770997]
[1762436189788,6.08018431,161.13,161.09,6.20770997]
[1762436190083,6.08018431,161.13,161.08,6.92803044]
[1762436190794,6.08018431,161.13,161.09,0.72]
[1762436191399,6.08018431,161.13,161.09,6.20754153]
[1762436191586,6.08018431,161.11,161.08,0.72]
[1762436191788,6.08018431,161.11,161.07,6.20848078]
[1762436191996,6.76018431,161.11,161.07,6.20848078]
[1762436192701,6.08018431,161.11,161.07,6.92848078]
[1762436193421,6.08018431,161.09,161.06,6.2087847]
[1762436193629,6.08018431,161.07,161.02,6.93033397]
[1762436193789,6.08018431,161.05,161.02,6.93033397]
[1762436194390,6.08018431,161.07,161.03,9.78882769]
[1762436194613,0.68,161.11,161.03,10.50882769]
[1762436194820,6.08018431,161.09,161.04,0.72]
[1762436195000,0.68,161.11,161.05,9.78882769]
[1762436195201,6.08018431,161.1,161.05,9.78882769]
[1762436195511,6.08018431,161.09,161.05,15.99777464]
[1762436195905,6.08018431,161.09,161.05,16.71777464]
[1762436196298,6.08018431,161.06,161.02,20.592]
[1762436196496,6.08018431,161.07,161.03,10.50882769]
[1762436196703,6.08018431,161.08,161.03,10.50882769]
[1762436197104,6.08018431,161.08,161.04,0.72]
[1762436197302,0.72,161.14,161.05,37.60139324]
[1762436197622,6.08018431,161.16,161.09,15.869012]
[1762436197996,6.08018431,161.15,161.1,0.72]
[1762436198195,6.9249249,161.17,161.09,9.78882769]
[1762436198196,6.08018431,161.13,161.09,9.78882769]
[1762436198420,6.08018431,161.1,161.06,30.38082769]
[1762436198831,6.08018431,161.09,161.06,10.50882769]
[1762436199019,6.08018431,161.08,161.04,6.2095279]
[1762436199406,6.08018431,161.07,161.04,6.9295279]
[1762436199822,6.08018431,161.07,161.04,0.72]
[1762436200235,6.08018431,161.08,161.04,0.72]
[1762436200610,6.08018431,161.09,161.04,0.72]
[1762436201531,6.08018431,161.09,161.05,6.20925178]
[1762436201831,12.28760601,161.1,161.05,6.20925178]
[1762436202033,13.00760601,161.1,161.05,6.92925178]
[1762436202212,13.00760601,161.1,161.05,0.72]
[1762436202550,6.08018431,161.09,161.05,0.72]
[1762436202910,0.72,161.14,161.06,15.869012]
[1762436203111,6.08018431,161.13,161.06,15.869012]
[1762436203318,6.08018431,161.09,161.05,0.72]
[1762436203518,21.72164541,161.13,161.06,6.20886626]
[1762436203519,6.08018431,161.1,161.06,6.20886626]
[1762436203810,6.08018431,161.11,161.06,6.20886626]
[1762436204224,6.08018431,161.11,161.06,6.92886626]
[1762436204423,117.70705479,161.12,161.06,12.28905057]
[1762436204625,6.08018431,161.11,161.07,0.72]
[1762436204936,6.08018431,161.12,161.07,0.72]
[1762436205134,12.28637711,161.13,161.08,9.78882769]
[1762436205522,12.28677305,161.12,161.07,9.78882769]
[1762436205724,12.28677305,161.12,161.07,16.589012]
[1762436205925,12.28677305,161.12,161.08,0.72]
[1762436206126,6.80018431,161.11,161.06,6.20886626]
[1762436206621,6.20658874,161.12,161.05,0.72]
[1762436206622,6.08018431,161.1,161.05,0.72]
[1762436206937,6.08018431,161.09,161.05,10.50882769]
[1762436207137,0.72,161.09,161.05,9.78882769]
[1762436207336,6.08018431,161.07,161.02,0.72]
[1762436207539,6.08018431,161.07,161.02,6.93013172]
[1762436207742,12.28866587,161.07,161.02,0.72]
[1762436207922,12.28866587,161.07,160.96,0.62127236]
[1762436207923,6.08018431,161.05,160.96,0.62127236]
[1762436208116,6.08018431,161.04,160.99,9.78882769]
[1762436208323,6.08018431,161.02,160.98,9.78882769]
[1762436208536,6.08018431,161.02,160.97,6.9323377]
[1762436208722,6.08018431,161.02,160.98,0.72]
[1762436208926,6.08018431,161.03,160.98,10.50882769]
[1762436209350,6.08018431,161.03,160.99,0.72]
[1762436209735,6.08018431,161.04,160.99,6.93147408]
[1762436210331,6.08018431,161.05,161.0,0.72]
[1762436210528,12.28946871,161.05,161.0,0.72]
[1762436210725,6.08018431,161.04,161.0,0.72]
[1762436211230,6.80018431,161.05,161.0,0.72]
[1762436211550,6.08018431,161.04,161.0,0.72]
[1762436212847,6.08018431,161.03,160.98,9.78882769]
[1762436213046,6.08018431,161.03,160.99,0.67]
[1762436213360,6.08018431,161.04,160.99,6.75018431]
[1762436213656,12.28998911,161.04,160.99,12.96166745]
[1762436214074,6.08018431,161.04,161.0,0.67]
[1762436214452,4.32774333,161.04,161.0,0.67]
[1762436215382,10.53739972,161.04,161.0,0.67]
[1762436216680,4.32774333,161.02,160.97,16.67108397]
[1762436216980,4.32774333,161.02,160.98,0.67]
[1762436217388,4.99774333,161.02,160.97,10.45882769]
[1762436218454,11.20825744,161.02,160.97,16.67114611]
[1762436218655,4.32774333,160.99,160.93,7.5]
[1762436218992,4.32774333,160.99,160.95,0.67]
[1762436219686,4.32774333,160.99,160.94,30.38082769]
[1762436219858,4.32774333,160.98,160.93,12.49774333]
[1762436220059,4.99774333,160.98,160.94,9.78882769]
[1762436220372,10.54055849,160.96,160.92,9.78882769]
[1762436220685,4.32774333,160.94,160.9,9.78882769]
[1762436220852,4.32774333,160.91,160.88,0.2]
[1762436221379,4.32774333,160.91,160.88,0.87]
[1762436221885,4.32774333,160.89,160.88,0.2]
[1762436222271,4.99774333,160.89,160.88,0.2]
[1762436222587,11.21317001,160.89,160.88,0.2]
[1762436222783,0.67,160.89,160.88,0.2]
[1762436222965,4.99774333,160.92,160.88,0.2]
[1762436223759,0.67,160.92,160.88,0.2]
[1762436224185,4.32774333,160.91,160.88,0.2]
[1762436224378,10.542916,160.9,160.88,0.2]
[1762436224893,4.99774333,160.89,160.88,0.2]
[1762436225074,4.32774333,160.9,160.88,0.2]
[1762436225277,4.99774333,160.9,160.88,0.2]
[1762436225584,4.32774333,160.89,160.88,0.2]
[1762436225775,4.99774333,160.9,160.88,0.2]
[1762436226371,4.32774333,160.89,160.88,0.2]
[1762436226771,10.54317001,160.89,160.88,0.2]
[1762436227067,11.21317001,160.89,160.88,1e-08]
[1762436227270,20.592,160.86,160.85,0.2]
[1762436227466,24.91974333,160.86,160.82,0.2]
[1762436227667,4.32774333,160.85,160.82,0.2]
[1762436227886,4.32774333,160.86,160.82,0.2]
[1762436228101,4.32774333,160.87,160.82,0.2]
[1762436228271,4.32774333,160.83,160.82,0.2]
[1762436228466,10.54548877,160.83,160.82,0.2]
[1762436229395,11.21548877,160.83,160.82,0.2]
[1762436230100,31.80748877,160.83,160.82,0.2]
[1762436230392,47.35185238,160.83,160.79,0.2]
[1762436230595,4.32774333,160.8,160.79,0.2]
[1762436230986,4.99774333,160.8,160.79,0.2]
[1762436231189,0.67,160.82,160.79,0.2]
[1762436231588,4.32774333,160.84,160.79,0.87]
[1762436231791,6.21705474,160.85,160.8,14.11657102]
[1762436232098,6.21705474,160.85,160.8,9.78882769]
[1762436232275,6.21705474,160.85,160.8,14.78657102]
[1762436232615,40.85975982,160.93,160.8,14.78657102]
[1762436232616,4.32774333,160.88,160.82,4.32774333]
[1762436232800,4.32774333,160.87,160.81,0.67]
[1762436233001,0.67,160.88,160.81,6.88842889]
[1762436233182,4.32774333,160.87,160.81,11.21617222]
[1762436233599,4.99774333,160.88,160.81,11.21617222]
[1762436233792,4.99774333,160.88,160.81,10.54617222]
[1762436233997,10.54201128,160.92,160.86,9.78882769]
[1762436234183,10.54201128,160.92,160.86,14.11657102]
[1762436234387,6.21426795,160.92,160.86,14.11657102]
[1762436234591,11.21167906,160.93,160.87,10.54361012]
[1762436234902,4.99774333,160.92,160.86,14.78657102]
[1762436235287,4.99774333,160.92,160.86,0.67]
[1762436235494,4.99774333,160.91,160.85,24.91974333]
[1762436235788,4.32774333,160.9,160.84,0.67]
[1762436236107,4.32774333,160.88,160.82,30.38082769]
[1762436236307,4.99774333,160.89,160.82,34.70857102]
[1762436236602,4.99774333,160.88,160.83,20.592]
[1762436236775,4.32774333,160.87,160.82,9.78882769]
[1762436237181,4.99774333,160.88,160.82,16.67690394]
[1762436237374,6.21465415,160.91,160.85,4.32774333]
[1762436237593,11.21239748,160.91,160.85,4.32774333]
[1762436237998,26.80633236,160.92,160.86,4.99774333]
[1762436238197,31.80407569,160.92,160.86,0.67]
[1762436238501,31.80407569,160.92,160.85,4.32774333]
[1762436238502,4.99774333,160.91,160.85,4.32774333]
[1762436238702,4.32774333,160.89,160.83,16.00655612]
[1762436238881,4.32774333,160.88,160.83,26.80972843]
[1762436239082,4.32774333,160.89,160.83,26.80972843]
[1762436239606,4.32774333,160.91,160.84,14.78657102]
[1762436239801,47.33974558,160.92,160.85,4.32774333]
[1762436240127,47.33974558,160.92,160.84,4.99774333]
[1762436240128,0.67,160.9,160.84,4.99774333]
[1762436240307,0.67,160.9,160.84,14.78657102]
[1762436240522,0.67,160.9,160.79,0.87]
[1762436240686,6.21542668,160.89,160.79,0.2]
[1762436241016,4.32774333,160.83,160.79,0.2]
[1762436241216,4.32774333,160.85,160.79,21.20577108]
[1762436241413,26.80709749,160.9,160.82,4.32774333]
[1762436241597,4.32774333,160.89,160.83,14.11657102]
[1762436241906,0.67,160.9,160.84,4.32774333]
[1762436242103,4.99774333,160.9,160.84,4.32774333]
[1762436242309,11.21287524,160.9,160.85,0.68]
[1762436242512,24.91974333,160.92,160.86,10.54432918]
[1762436242814,4.32774333,160.9,160.85,0.68]
[1762436242980,4.32774333,160.89,160.83,11.22538484]
[1762436243181,4.32774333,160.89,160.83,10.46882769]
[1762436243408,4.32774333,160.9,160.84,14.79657102]
[1762436243592,6.90465415,160.91,160.85,4.32774333]
[1762436243593,6.21465415,160.91,160.85,4.32774333]
[1762436243781,4.32774333,160.86,160.79,0.88]
[1762436243994,5.01774333,160.9,160.79,0.88]
[1762436243995,4.32774333,160.83,160.8,9.78882769]
[1762436244413,20.592,160.86,160.81,0.68]
[1762436244605,11.23328295,160.89,160.83,4.32774333]
[1762436244802,4.32774333,160.87,160.82,9.78882769]
[1762436245009,4.32774333,160.87,160.82,10.46882769]
[1762436245302,4.32774333,160.87,160.83,0.68]
[1762436245512,4.32774333,160.88,160.83,0.68]
[1762436245719,11.23328295,160.89,160.83,5.00774333]
[1762436245923,21.282,160.91,160.84,9.78882769]
[1762436246106,27.49667107,160.91,160.84,14.79657102]
[1762436246306,4.32774333,160.89,160.84,10.46882769]
[1762436246526,4.32774333,160.89,160.84,16.68606801]
[1762436246699,4.32774333,160.89,160.85,0.68]
[1762436246899,10.5431213,160.9,160.85,0.68]
[1762436247110,20.592,160.91,160.86,4.32774333]
[1762436247111,4.32774333,160.91,160.86,4.32774333]
[1762436247308,5.01774333,160.92,160.86,4.32774333]
[1762436247528,5.01774333,160.92,160.86,0.68]
[1762436247713,5.01774333,160.92,160.86,5.00774333]
[1762436247899,36.1274604,160.93,160.87,5.00774333]
[1762436247900,10.5419094,160.93,160.87,5.00774333]
[1762436248099,4.32774333,160.9,160.86,9.78882769]
[1762436248300,11.78882768,160.99,160.86,14.11657102]
[1762436248301,4.32774333,160.91,160.86,14.11657102]
[1762436248516,4.32774333,160.91,160.87,0.68]
[1762436248727,10.5425784,160.91,160.87,0.68]
[1762436249097,4.32774333,160.93,160.87,11.22390908]
[1762436249417,4.32774333,160.94,160.88,4.32774333]
[1762436249613,4.32774333,160.93,160.88,0.68]
[1762436250005,4.32774333,160.92,160.88,0.68]
[1762436250602,4.32774333,160.93,160.89,6.21542668]
[1762436250832,4.32774333,160.94,160.89,6.21542668]
[1762436251123,4.32774333,160.94,160.9,10.46882769]
[1762436251506,4.32774333,160.94,160.91,0.68]
[1762436251830,4.32774333,160.95,160.91,0.68]
[1762436252416,4.32774333,160.95,160.91,6.89459636]
[1762436252601,4.32774333,160.94,160.91,0.68]
[1762436252807,4.32774333,160.95,160.91,9.78882769]
[1762436253026,4.32774333,160.95,160.92,0.68]
[1762436253330,4.32774333,160.95,160.91,10.46882769]
[1762436253509,4.32774333,160.94,160.86,8.10165858]
[1762436253710,4.32774333,160.94,160.88,4.32774333]
[1762436254228,10.54144032,160.94,160.89,6.89542668]
[1762436254428,4.32774333,160.9,160.84,0.68]
[1762436254723,4.32774333,160.85,160.8,5.00774333]
[1762436254931,4.32774333,160.85,160.81,0.68]
[1762436255109,4.32774333,160.85,160.82,9.78882769]
[1762436255603,4.32774333,160.85,160.82,10.46882769]
[1762436255810,4.32774333,160.85,160.83,0.68]
[1762436256329,4.32774333,160.85,160.8,0.68]
[1762436256629,4.32774333,160.85,160.81,0.68]
[1762436257010,0.69,160.87,160.81,0.68]
[1762436257321,4.32774333,160.87,160.82,9.78882769]
[1762436257529,4.32774333,160.86,160.83,0.69]
[1762436257828,4.32774333,160.89,160.83,5.01774333]
[1762436258139,4.32774333,160.89,160.84,9.78882769]
[1762436258315,4.32774333,160.89,160.84,10.47882769]
[1762436258505,10.5433198,160.89,160.85,6.90697233]
[1762436258706,4.32774333,160.88,160.83,6.21744439]
[1762436258926,4.32774333,160.86,160.82,16.69683998]
[1762436259234,4.32774333,160.85,160.82,16.69683998]
[1762436259421,4.32774333,160.86,160.82,16.69683998]
[1762436260619,10.54135886,160.94,160.89,6.21542668]
[1762436260938,4.32774333,160.93,160.89,6.90542668]
[1762436261229,4.32774333,160.91,160.86,25.60974333]
[1762436261535,4.32774333,160.93,160.88,4.32774333]
[1762436262036,4.32774333,160.93,160.88,5.01774333]
[1762436262208,4.32774333,160.93,160.86,31.82629312]
[1762436262209,0.69,160.92,160.86,31.82629312]
[1762436262535,6.21465415,160.91,160.86,27.49854979]
[1762436263030,5.01774333,160.92,160.86,27.49854979]
[1762436263234,4.32774333,160.93,160.87,14.80657102]
[1762436263422,11.23135831,160.94,160.87,14.80657102]
[1762436263933,6.90361498,160.94,160.88,4.32774333]
[1762436264138,4.32774333,160.89,160.83,0.69]
[1762436264310,4.32774333,160.88,160.83,0.69]
[1762436264510,10.5434801,160.89,160.83,0.69]
[1762436264708,4.32774333,160.88,160.83,0.69]
[1762436265042,4.32774333,160.84,160.79,6.41917022]
[1762436265335,4.32774333,160.83,160.79,0.2]
[1762436265753,4.32774333,160.83,160.79,0.89]
[1762436266413,4.32774333,160.84,160.79,7.10916114]
[1762436266622,10.54546393,160.84,160.79,7.10916114]
[1762436266832,11.23546393,160.84,160.79,7.10916114]
[1762436267137,5.01774333,160.84,160.79,7.10916114]
[1762436267356,0.69,160.88,160.8,5.01774333]
[1762436267520,5.01774333,160.86,160.8,5.01774333]
[1762436267718,4.32774333,160.85,160.8,0.69]
[1762436268119,5.01774333,160.85,160.8,0.69]
[1762436268845,11.23490963,160.85,160.8,6.90885415]
[1762436269230,11.23490963,160.85,160.8,0.69]
[1762436269455,5.01774333,160.85,160.8,0.69]
[1762436269751,15.54130861,160.87,160.8,0.69]
[1762436269752,4.32774333,160.86,160.81,4.32774333]
[1762436270122,4.32774333,160.86,160.82,0.69]
[1762436270342,4.32774333,160.87,160.82,14.80657102]
[1762436270512,6.21586763,160.88,160.82,14.11657102]
[1762436270713,10.54361096,160.88,160.83,0.69]
[1762436270917,4.32774333,160.87,160.83,0.69]
[1762436271537,10.54361096,160.88,160.83,0.69]
[1762436271842,11.23361096,160.88,160.83,0.69]
[1762436272738,6.21586763,160.88,160.84,4.32774333]
[1762436273131,6.21586763,160.88,160.84,0.69]
[1762436273335,6.21551321,160.89,160.83,10.5453908]
[1762436273647,31.0678302,160.94,160.87,4.32774333]
[1762436273648,4.32774333,160.92,160.87,4.32774333]
[1762436273817,4.32774333,160.92,160.87,5.01774333]
[1762436273818,5.04774333,160.92,160.87,5.01774333]
[1762436274025,5.04774333,160.92,160.87,0.69]
[1762436274424,5.04774333,160.92,160.86,4.32774333]
[1762436274425,6.08771891,160.88,160.83,0.69]
[1762436274638,6.08771891,160.89,160.83,6.77771891]
[1762436274838,6.08771891,160.89,160.84,0.69]
[1762436275242,6.08771891,160.91,160.85,15.8765466]
[1762436275550,6.21480361,160.91,160.85,10.47882769]
[1762436275750,6.21480361,160.91,160.86,6.77771891]
[1762436276252,6.80771891,160.92,160.87,0.69]
[1762436276424,26.67971891,160.93,160.87,6.77771891]
[1762436276626,6.08771891,160.94,160.88,22.09211258]
[1762436277037,6.08771891,160.94,160.88,22.78211258]
[1762436277227,12.30125853,160.94,160.88,22.78211258]
[1762436277534,12.30125853,160.94,160.88,6.77771891]
[1762436277535,6.08771891,160.93,160.88,6.77771891]
[1762436277741,6.08771891,160.93,160.88,6.08771891]
[1762436277946,6.08771891,160.93,160.89,0.69]
[1762436278936,12.30190064,160.93,160.89,0.69]
[1762436279157,6.08771891,160.92,160.87,16.5665466]
[1762436279355,6.08771891,160.92,160.87,22.78244796]
[1762436279563,6.80771891,160.93,160.88,0.69]
[1762436280057,13.02162003,160.93,160.88,0.69]
[1762436280764,6.08771891,160.92,160.88,0.69]
[1762436281056,6.08771891,160.91,160.87,6.21590136]
[1762436281260,6.08771891,160.89,160.85,16.69578888]
[1762436281556,6.08771891,160.92,160.87,6.08771891]
[1762436281737,13.02160072,160.93,160.87,6.08771891]
[1762436281939,13.02160072,160.93,160.88,0.69]
[1762436282256,6.08771891,160.89,160.85,0.69]
[1762436282426,0.72,160.92,160.85,0.69]
[1762436282632,6.08771891,160.9,160.85,0.69]
[1762436282830,6.08771891,160.88,160.85,0.69]
[1762436283034,6.08771891,160.87,160.83,6.90748895]
[1762436283239,6.08771891,160.85,160.82,9.78882769]
[1762436283433,6.21504039,160.9,160.8,6.90884219]
[1762436283434,6.08771891,160.84,160.8,6.90884219]
[1762436284550,6.08771891,160.84,160.79,30.58082769]
[1762436284551,6.08771891,160.82,160.79,9.98882769]
[1762436284735,6.08771891,160.82,160.79,30.58082769]
[1762436284931,6.08771891,160.83,160.8,0.69]
[1762436285254,6.08771891,160.84,160.8,0.69]
[1762436285447,6.21734754,160.85,160.81,9.78882769]
[1762436285645,12.30440395,160.86,160.81,9.78882769]
[1762436285850,6.08771891,160.88,160.82,6.77771891]
[1762436286047,6.08771891,160.88,160.83,6.08771891]
[1762436286357,6.08771891,160.87,160.83,0.69]
[1762436287333,12.30403823,160.87,160.83,0.69]